bitfinex-derivatives/quotes_SOLF0:USTF0_20240927
["timestamp","ask_amount","ask_price","bid_price","bid_amount"]
[1727450462051,23.84,161.01,160.9,1.3036]
[1727450462253,3.1049,160.98,160.93,3.1056]
[1727450462448,67.1,161.0,160.9,25.1436]
[1727450462752,67.1,161.0,160.96,23.84]
[1727450462948,1.3512,161.05,160.98,23.84]
[1727450463151,70.2769293,161.08,160.99,1.2739]
[1727450463356,70.2769293,161.08,161.03,3.1037]
[1727450463653,70.2769293,161.08,160.99,2.5293]
[1727450463952,3.1033,161.06,161.01,3.1042]
[1727450464155,70.2769293,161.08,161.01,3.1042]
[1727450464649,70.2769293,161.08,160.99,1.2739]
[1727450465149,70.2769293,161.08,160.99,25.1139]
[1727450465553,94.1169293,161.08,160.99,1.2739]
[1727450465747,1.2805,161.07,160.99,1.2739]
[1727450465949,1.2805,161.07,160.96,23.84]
[1727450466154,3.1038,161.04,160.99,3.1046]
[1727450466658,2.5844,161.07,160.95,1.3267]
[1727450466659,23.84,161.06,160.95,1.3267]
[1727450467248,3.104,161.03,160.95,1.3267]
[1727450467448,23.84,161.06,160.95,1.3267]
[1727450467646,3.8559,161.07,160.94,2.687]
[1727450467852,3.1038,161.04,160.94,2.687]
[1727450468052,3.1038,161.04,160.94,4.036]
[1727450468252,67.1,161.05,161.01,23.84]
[1727450468453,3.08945807,161.1,161.01,23.84]
[1727450468752,2.591,161.13,161.04,23.84]
[1727450468959,3.10312824,161.14,161.1,3.1024]
[1727450469156,68.3715,161.17,161.06,23.84]
[1727450469650,71.49948309,161.17,161.06,23.84]
[1727450470646,95.33948309,161.17,161.04,23.84]
[1727450470852,71.49948309,161.17,161.06,23.84]
[1727450471356,70.22798309,161.17,161.09,23.84]
[1727450471557,67.1,161.17,161.1,1.3514]
[1727450471754,67.1,161.17,161.06,23.84]
[1727450472553,70.27284747,161.17,161.04,23.84]
[1727450472848,70.27284747,161.17,161.08,3.1029]
[1727450473051,23.84,161.16,161.04,23.84]
[1727450473455,23.84,161.13,161.05,3.1034]
[1727450473657,2.7123,161.12,161.01,23.84]
[1727450474058,2.7123,161.12,160.99,26.4872]
[1727450474451,1.3677,161.11,160.99,26.4872]
[1727450474655,67.08,161.1,160.99,26.4872]
[1727450476256,67.08,161.1,161.04,3.1035]
[1727450476656,90.92,161.1,160.94,1.3218]
[1727450476853,23.84,161.07,160.95,23.84]
[1727450477064,26.96514967,161.07,160.95,23.84]
[1727450478063,26.96514967,161.07,160.94,1.2666]
[1727450478064,23.84,161.04,160.94,1.2666]
[1727450478260,1.3155,161.03,160.94,1.2666]
[1727450479066,4.4194,161.03,160.98,3.1048]
[1727450479268,1.3155,161.03,160.94,1.2666]
[1727450479560,3.1035,161.06,161.0,3.1043]
[1727450479860,3.12514967,161.07,160.95,28.27617014]
[1727450480060,3.1032,161.07,160.95,28.27617014]
[1727450480257,6.27316233,161.07,160.95,28.27617014]
[1727450480460,1.2766,161.09,160.95,28.27617014]
[1727450480656,3.1035,161.06,160.95,28.27617014]
[1727450480859,3.10130674,161.07,160.95,28.27617014]
[1727450481060,1.2766,161.09,160.95,28.27617014]
[1727450481458,1.2766,161.09,161.02,3.1039]
[1727450481656,1.2766,161.09,160.95,28.27617014]
[1727450482052,1.2766,161.09,160.99,3.1046]
[1727450482252,23.84,161.07,160.99,3.1046]
[1727450482463,3.1039,161.04,160.95,25.1007]
[1727450482763,26.93229763,161.07,160.98,3.1048]
[1727450483059,23.84,161.04,160.95,1.2607]
[1727450483261,23.84,161.02,160.9,25.1792]
[1727450483461,1.3655,161.01,160.9,25.1792]
[1727450483660,1.3655,161.01,160.9,1.3392]
[1727450483962,2.7315,161.01,160.9,1.3392]
[1727450484365,3.105,160.98,160.93,3.1057]
[1727450484565,2.7315,161.01,160.9,1.3392]
[1727450485654,3.105,160.98,160.9,1.3392]
[1727450485854,3.04373352,160.97,160.9,1.3392]
[1727450486459,3.04373352,160.97,160.92,3.1059]
[1727450486460,3.1052,160.97,160.92,3.1059]
[1727450486657,3.06127499,160.96,160.88,2.7053]
[1727450486965,3.105,160.98,160.92,3.1058]
[1727450487160,3.04977462,160.98,160.88,2.7053]
[1727450488260,6.15477462,160.98,160.93,3.1056]
[1727450488766,3.04977462,160.98,160.92,3.1059]
[1727450488961,3.04977462,160.98,160.88,2.7053]
[1727450489167,67.1,160.99,160.9,23.84]
[1727450489366,67.1,160.99,160.95,23.84]
[1727450489583,1.3291,161.03,160.95,23.84]
[1727450489875,1.346,161.06,160.97,23.84]
[1727450490168,1.346,161.06,161.0,23.84]
[1727450490375,3.17284747,161.17,161.03,23.84]
[1727450490673,23.84,161.14,161.03,23.84]
[1727450490870,23.84,161.14,161.0,23.84]
[1727450491268,3.1025,161.1,161.05,3.1033]
[1727450492467,23.84,161.14,161.0,23.84]
[1727450493577,23.84,161.14,161.04,3.1036]
[1727450494170,23.84,161.14,161.05,3.1035]
[1727450495768,90.92,161.14,161.05,3.1035]
[1727450496073,90.92,161.14,161.0,23.84]
[1727450496274,23.84,161.12,161.0,23.84]
[1727450496575,23.84,161.12,161.05,3.1035]
[1727450496777,23.84,161.12,161.0,23.84]
[1727450497174,23.84,161.12,161.05,3.1033]
[1727450498269,90.92,161.14,161.06,3.1033]
[1727450499578,90.92,161.14,161.0,23.84]
[1727450499782,67.08,161.14,161.03,23.84]
[1727450500175,67.08,161.14,161.07,3.103]
[1727450500976,3.18238868,161.17,160.95,3.14510963]
[1727450501179,159.9417994,161.44,160.42,21.34826012]
[1727450501180,18.64,161.09,160.42,21.34826012]
[1727450501378,0.92385333,161.08,160.8,23.84]
[1727450501584,0.92385333,161.08,160.86,23.84]
[1727450501788,23.84,161.03,160.89,23.84]
[1727450501978,23.84,161.1,160.92,23.84]
[1727450502173,23.84,161.1,160.95,23.84]
[1727450502481,1.349,161.12,161.01,3.1041]
[1727450502682,16.07107245,161.11,160.95,23.84]
[1727450502872,7.69213593,161.0,160.96,3.17444737]
[1727450503073,16.07107245,160.99,160.96,3.03718404]
[1727450503272,16.07123878,160.98,160.91,23.84]
[1727450503480,3.10610498,160.97,160.96,3.1052]
[1727450503691,7.69213593,160.98,160.93,23.84]
[1727450503985,5.63063593,160.98,160.93,23.84]
[1727450504177,0.63063593,160.98,160.93,23.84]
[1727450504774,3.1032,161.07,160.98,3.1048]
[1727450505383,3.103,161.08,160.97,3.08656157]
[1727450506274,1.3527,161.09,160.97,3.08656157]
[1727450506680,1.3527,161.09,160.96,23.84]
[1727450507181,1.3527,161.09,160.96,26.94364185]
[1727450507482,1.3527,161.09,160.96,3.10364185]
[1727450507688,23.84,161.07,160.93,23.84]
[1727450507882,1.3402,161.06,160.93,23.84]
[1727450508187,3.1037,161.05,160.98,3.1048]
[1727450508387,4.3495,161.05,160.98,3.1048]
[1727450508776,123.09591584,165.39,160.98,3.1048]
[1727450508981,67.08,161.5,161.0,7.69156274]
[1727450509182,68.02049436,161.49,161.2,23.84]
[1727450509383,68.02049436,161.49,161.16,23.84]
[1727450509384,68.02049436,161.48,161.16,23.84]
[1727450509604,23.84,161.28,161.08,23.84]
[1727450509888,23.84,161.24,161.04,23.84]
[1727450510283,3.1015,161.16,161.04,23.84]
[1727450510491,67.08,161.15,160.84,13.81568126]
[1727450510790,23.84,161.18,160.98,23.84]
[1727450510791,67.08,161.14,160.98,23.84]
[1727450510983,70.22458922,161.14,161.01,23.84]
[1727450512295,73.32648922,161.14,161.01,26.9442]
[1727450512489,70.22458922,161.14,161.01,3.1042]
[1727450512687,3.1022,161.12,161.02,3.104]
[1727450512882,70.22458922,161.14,161.0,26.4201]
[1727450513089,67.08,161.14,161.03,23.84]
[1727450513587,67.08,161.14,161.05,3.1033]
[1727450514482,67.08,161.14,161.03,23.84]
[1727450514890,2.5888,161.13,161.03,23.84]
[1727450515598,2.5888,161.13,161.01,23.84]
[1727450515796,1.2652,161.12,161.01,23.84]
[1727450516200,4.3675,161.12,161.01,23.84]
[1727450516401,1.2652,161.12,161.01,23.84]
[1727450518297,4.3675,161.12,161.01,26.9441]
[1727450518494,1.2652,161.12,161.01,23.84]
[1727450518698,23.84,161.11,161.0,2.5801]
[1727450520399,1.2652,161.12,161.0,2.5801]
[1727450520803,3.1024,161.11,161.02,3.1039]
[1727450521393,3.1024,161.11,161.0,5.6844]
[1727450521594,23.84,161.09,160.99,1.3544]
[1727450522100,23.84,161.06,160.92,26.3799]
[1727450522301,23.84,161.03,160.93,1.2875]
[1727450522506,70.23481663,161.02,160.93,1.2875]
[1727450522706,67.08,161.02,160.93,1.2875]
[1727450523302,67.08,161.02,160.95,3.1054]
[1727450523496,67.08,161.02,160.93,1.2875]
[1727450524804,67.08,161.02,160.96,3.1051]
[1727450527905,23.84,161.0,160.82,3.07659978]
[1727450528114,23.84,161.0,160.86,23.84]
[1727450528409,23.84,160.97,160.9,3.1063]
[1727450529410,23.84,160.97,160.86,23.84]
[1727450529711,29.5336,160.97,160.84,1.3474]
[1727450530007,23.84,160.95,160.84,1.3474]
[1727450530400,26.9456,160.95,160.88,3.1068]
[1727450530608,23.84,160.95,160.84,1.3474]
[1727450530803,3.10564693,160.94,160.84,1.3474]
[1727450531307,3.1056,160.94,160.87,3.1069]
[1727450531509,3.08886469,160.93,160.87,3.1069]
[1727450531913,23.84,160.95,160.84,1.3474]
[1727450532108,1.3072,160.96,160.84,1.3474]
[1727450532109,67.1,160.96,160.89,23.84]
[1727450532306,67.1,160.99,160.91,23.84]
[1727450533004,67.1,160.99,160.94,3.1055]
[1727450533609,70.2047,160.99,160.93,3.1057]
[1727450533815,67.1,160.99,160.93,3.1057]
[1727450534114,67.1,160.99,160.88,23.84]
[1727450535017,67.1,160.99,160.94,3.1055]
[1727450536613,3.04268687,161.01,160.96,3.1052]
[1727450536813,3.04268687,161.01,160.91,23.84]
[1727450537014,67.12,161.0,160.91,23.84]
[1727450537214,67.12,161.0,160.94,3.1054]
[1727450537817,67.12,161.0,160.95,3.1054]
[1727450538017,70.2245,161.0,160.91,23.84]
[1727450538320,67.12,161.0,160.91,23.84]
[1727450539719,67.12,161.0,160.94,3.1055]
[1727450539919,67.12,161.0,160.91,23.84]
[1727450540116,2.5533,161.03,160.96,23.84]
[1727450540318,2.5533,161.03,160.98,3.1048]
[1727450540520,2.5533,161.03,160.96,23.84]
[1727450540819,2.5533,161.03,160.98,3.1048]
[1727450541015,2.5533,161.03,160.96,23.84]
[1727450541221,2.5533,161.03,160.93,23.84]
[1727450541919,3.1042,161.02,160.96,3.1051]
[1727450542822,5.6572,161.03,160.97,3.1049]
[1727450543123,2.5533,161.03,160.93,23.84]
[1727450543324,2.5533,161.03,160.96,23.84]
[1727450543721,2.5533,161.03,160.99,3.1045]
[1727450544223,5.6572,161.03,160.98,3.1048]
[1727450544423,5.6572,161.03,160.96,23.84]
[1727450544424,2.5533,161.03,160.93,23.84]
[1727450544817,3.1041,161.02,160.96,3.1051]
[1727450545020,3.1041,161.02,160.93,23.84]
[1727450545217,3.1045,161.0,160.95,3.1053]
[1727450545422,2.5533,161.03,160.91,25.169]
[1727450545723,3.1048,160.99,160.91,25.169]
[1727450545926,23.84,161.02,160.91,23.84]
[1727450546523,3.1048,160.99,160.93,3.1058]
[1727450547130,3.1049,160.98,160.92,3.106]
[1727450547524,23.84,161.0,160.84,76.61491102]
[1727450547828,23.84,160.97,160.85,23.84]
[1727450548026,4.0234,160.96,160.85,23.84]
[1727450548224,3.1059,160.93,160.87,3.1068]
[1727450548429,73.40785845,160.93,160.87,3.1068]
[1727450548730,70.2259,160.93,160.87,3.1068]
[1727450549130,73.39293719,160.93,160.87,3.1068]
[1727450549318,73.39293719,160.93,160.85,23.84]
[1727450550531,70.28703719,160.93,160.84,75.37761102]
[1727450551329,70.28703719,160.93,160.85,23.84]
[1727450551528,2.7104,160.96,160.9,23.84]
[1727450552038,67.12,161.0,160.93,3.1057]
[1727450552436,67.12,161.0,160.9,23.84]
[1727450552835,90.96,161.0,160.87,23.84]
[1727450554038,3.1053,160.96,160.9,3.1062]
[1727450554231,90.96,161.0,160.87,23.84]
[1727450554636,3.1053,160.96,160.9,3.1063]
[1727450554837,90.96,161.0,160.87,23.84]
[1727450555036,67.12,161.0,160.9,23.84]
[1727450555538,3.1054,160.96,160.9,3.1063]
[1727450555737,3.09744841,160.95,160.87,23.84]
[1727450555939,90.96,161.0,160.87,23.84]
[1727450556129,23.84,160.97,160.88,3.1067]
[1727450556640,3.1057,160.94,160.89,3.1065]
[1727450556838,23.84,160.97,160.89,3.1065]
[1727450557036,90.96,161.0,160.87,23.84]
[1727450557539,90.96,161.0,160.9,3.1063]
[1727450558936,3.1053,160.96,160.9,3.1063]
[1727450559138,3.04199757,160.95,160.9,3.1063]
[1727450559338,90.96,161.0,160.84,75.37761102]
[1727450559540,23.84,160.97,160.84,75.37761102]
[1727450559736,67.12,161.0,160.84,75.37761102]
[1727450560034,67.12,161.0,160.92,23.84]
[1727450561342,3.1049,160.98,160.93,3.1057]
[1727450561635,67.12,161.0,160.92,23.84]
[1727450562239,3.9196,161.01,160.92,23.84]
[1727450562837,3.1047,160.99,160.92,23.84]
[1727450563433,3.1047,160.99,160.94,3.1054]
[1727450563943,3.9196,161.01,160.94,3.1054]
[1727450564146,3.9196,161.01,160.93,3.1057]
[1727450564441,3.9196,161.01,160.92,23.84]
[1727450564842,3.1048,160.99,160.94,3.1055]
[1727450565135,3.9196,161.01,160.92,23.84]
[1727450565534,5.6936,161.01,160.96,3.1052]
[1727450566642,3.1045,161.0,160.96,3.1052]
[1727450568943,2.5893,161.01,160.94,23.84]
[1727450570437,2.5893,161.01,160.92,23.84]
[1727450570650,3.1045,161.0,160.92,23.84]
[1727450571040,2.5893,161.01,160.92,23.84]
[1727450571246,2.5893,161.01,160.91,1.2736]
[1727450571649,26.4293,161.01,160.89,74.0581689]
[1727450571850,26.4293,161.01,160.87,25.1075]
[1727450572346,3.1052,160.97,160.92,3.106]
[1727450573444,3.1049,160.98,160.93,3.1058]
[1727450574043,2.5893,161.01,160.93,3.1058]
[1727450574349,2.5893,161.01,160.9,23.84]
[1727450574550,3.105,160.98,160.9,23.84]
[1727450574949,2.5893,161.01,160.9,23.84]
[1727450575246,5.6936,161.01,160.9,23.84]
[1727450575544,2.5893,161.01,160.9,23.84]
[1727450575945,2.5893,161.01,160.92,23.84]
[1727450576251,2.5893,161.01,160.96,3.1051]
[1727450576551,5.6937,161.01,160.96,3.1051]
[1727450576850,2.5893,161.01,160.92,23.84]
[1727450577048,1.2627,161.01,160.92,23.84]
[1727450577353,3.12048719,161.04,160.99,3.1045]
[1727450577543,67.12,161.08,160.97,23.84]
[1727450578140,3.1036,161.05,160.97,23.84]
[1727450578343,67.12,161.08,160.97,23.84]
[1727450578747,67.12,161.08,161.0,23.84]
[1727450579142,2.5992,161.1,161.06,3.1033]
[1727450579339,2.5992,161.1,161.02,23.84]
[1727450579953,67.1,161.14,161.02,23.84]
[1727450580250,69.7631,161.14,161.05,23.84]
[1727450580851,69.7631,161.14,161.06,3.1032]
[1727450581648,2.6631,161.14,161.05,23.84]
[1727450582849,2.6631,161.14,161.07,23.84]
[1727450583059,67.1,161.18,161.09,23.84]
[1727450583060,3.12716792,161.17,161.09,23.84]
[1727450583352,67.1,161.18,161.11,3.1023]
[1727450583549,67.1,161.18,161.09,23.84]
[1727450583758,70.21913354,161.18,161.09,23.84]
[1727450584050,73.32023354,161.18,161.09,23.84]
[1727450584450,3.1012,161.17,161.12,3.102]
[1727450585147,2.7251,161.24,161.09,23.84]
[1727450585352,1.3061,161.23,161.09,23.84]
[1727450585554,23.84,161.2,161.09,23.84]
[1727450585755,3.1012,161.17,161.11,3.1023]
[1727450586257,25.1461,161.23,161.13,3.1018]
[1727450586453,1.3061,161.23,161.12,23.84]
[1727450587254,25.1461,161.23,161.1,23.84]
[1727450587454,23.84,161.21,161.09,3.8644]
[1727450587650,23.84,161.22,161.09,3.8644]
[1727450587854,3.1011,161.18,161.09,3.8644]
[1727450588055,23.84,161.22,161.09,3.8644]
[1727450588552,3.1016,161.15,161.1,3.1024]
[1727450588757,23.84,161.22,161.09,2.5893]
[1727450588957,3.1011,161.18,161.09,2.5893]
[1727450589261,23.84,161.22,161.09,2.5893]
[1727450589465,23.84,161.22,161.1,3.1024]
[1727450589764,23.84,161.19,161.05,23.84]
[1727450589960,67.06,161.18,161.05,23.84]
[1727450590161,23.84,161.16,161.05,23.84]
[1727450590356,1.3142,161.15,161.05,23.84]
[1727450590665,1.3142,161.15,161.1,3.1024]
[1727450590964,1.3142,161.15,161.08,23.84]
[1727450591761,1.3142,161.15,161.1,3.1025]
[1727450591964,4.4158,161.15,161.1,3.1025]
[1727450592164,7.55728468,161.15,161.1,3.1025]
[1727450593164,4.4158,161.15,161.1,3.1025]
[1727450595166,1.2717,161.17,161.08,23.84]
[1727450595365,68.3688,161.2,161.1,23.84]
[1727450595765,3.1012,161.17,161.12,3.102]
[1727450596266,68.3688,161.2,161.1,23.84]
[1727450596466,3.1015,161.16,161.11,3.1022]
[1727450598261,23.84,161.19,161.09,3.1025]
[1727450598665,21.2275,161.23,161.03,5.80261151]
[1727450598666,3.1004,161.22,161.17,3.1011]
[1727450598862,1.2562,161.23,161.14,23.84]
[1727450600475,25.0962,161.23,161.12,23.84]
[1727450600675,1.2575,161.22,161.1,2.6527]
[1727450600969,3.1011,161.18,161.13,3.1018]
[1727450601171,1.2575,161.22,161.12,23.84]
[1727450602264,1.2575,161.22,161.1,2.6527]
[1727450602664,3.1011,161.18,161.13,3.1018]
[1727450603471,67.04,161.21,161.12,3.1021]
[1727450603672,23.84,161.18,161.06,23.84]
[1727450603876,3.1016,161.15,161.1,3.1024]
[1727450604173,3.15134299,161.14,161.1,3.1024]
[1727450605672,3.1015,161.16,161.06,23.84]
[1727450605877,3.15631013,161.15,161.09,23.84]
[1727450606076,1.2621,161.17,161.09,23.84]
[1727450606275,3.1017,161.15,161.1,3.1024]
[1727450606478,6.18078342,161.15,161.1,3.1024]
[1727450606682,3.1015,161.16,161.11,3.1023]
[1727450606976,1.2621,161.17,161.11,3.1023]
[1727450607177,3.1017,161.15,161.1,3.1024]
[1727450607480,3.0433812,161.14,161.1,3.1024]
[1727450607778,1.3426,161.16,161.05,1.2849]
[1727450608581,3.1019,161.14,161.05,1.2849]
[1727450608776,3.17470327,161.13,161.05,1.2849]
[1727450608977,3.1021,161.13,161.08,3.1028]
[1727450609277,3.0738057,161.12,161.08,3.1028]
[1727450611778,3.1021,161.13,161.09,3.1027]
[1727450612482,6.16697283,161.13,161.09,3.1027]
[1727450612787,6.16697283,161.13,161.05,1.2849]
[1727450613076,3.1018,161.14,161.05,1.2849]
[1727450613376,6.15351123,161.14,161.09,3.1026]
[1727450613584,3.102,161.13,161.09,3.1026]
[1727450613774,3.102,161.13,161.08,3.1028]
[1727450614387,6.17575757,161.13,161.08,3.1028]
[1727450615291,3.1022,161.12,161.07,3.103]
[1727450615681,3.1022,161.12,161.06,14.91]
[1727450615882,6.17575757,161.13,161.08,3.1028]
[1727450616288,6.17575757,161.13,161.06,14.91]
[1727450616289,3.1023,161.12,161.06,14.91]
[1727450616483,14.91,161.15,161.06,14.91]
[1727450616684,3.05586854,161.14,161.06,14.91]
[1727450616880,6.15776854,161.14,161.09,3.1026]
[1727450617082,3.05586854,161.14,161.09,3.1026]
[1727450617888,3.102,161.13,161.09,3.1026]
[1727450618090,3.102,161.13,161.08,3.1029]
[1727450618692,3.1024,161.11,161.07,3.1031]
[1727450620191,3.1022,161.12,161.07,3.1031]
[1727450620387,17.95841672,161.13,161.08,500.0]
[1727450621396,17.94841672,161.13,161.08,500.0]
[1727450621903,3.1024,161.11,161.08,500.0]
[1727450622793,3.1022,161.12,161.08,500.0]
[1727450622992,17.94841672,161.13,161.08,500.0]
[1727450623994,18.0027,161.09,161.08,412.93]
[1727450624390,18.0127,161.09,161.08,412.93]
[1727450624785,21.09111525,161.09,161.08,412.93]
[1727450628697,21.09111525,161.09,161.08,325.86]
[1727450629820,21.09111525,161.09,161.08,305.1276]
[1727450629998,23.67841525,161.09,161.08,305.1276]
[1727450630203,38.62528539,161.09,161.08,236.8629004]
[1727450630500,35.51,161.09,161.08,230.5439004]
[1727450630895,38.65634816,161.09,161.08,230.5439004]
[1727450631094,23.74634816,161.09,161.08,202.5539004]
[1727450631496,23.74634816,161.09,161.08,172.3739004]
[1727450632300,90.82634816,161.09,161.08,172.3739004]
[1727450632697,87.68,161.09,161.08,156.3739004]
[1727450632897,87.68,161.09,161.08,127.4739004]
[1727450633302,90.78176762,161.09,161.08,127.4739004]
[1727450633999,87.68,161.09,161.08,124.4739004]
[1727450634504,127.4355,161.09,161.08,8.6182004]
[1727450634799,127.4355,161.09,160.95,21.9267]
[1727450634800,3.1046,161.0,160.95,7.0167]
[1727450634995,3.05485117,160.99,160.95,3.9114]
[1727450635193,3.1046,161.0,160.95,3.9114]
[1727450635405,3.1043,161.01,160.96,18.0151]
[1727450635609,14.91,161.03,160.96,18.0151]
[1727450635904,3.1042,161.02,160.96,18.0151]
[1727450636703,14.91,161.03,160.95,3.9114]
[1727450636895,14.91,161.01,160.95,3.9114]
[1727450637101,3.1047,160.99,160.95,3.9114]
[1727450637300,3.13924737,160.98,160.95,3.9114]
[1727450637701,14.91,161.01,160.95,3.9114]
[1727450638299,3.1047,160.99,160.95,3.9114]
[1727450638502,3.03926133,160.98,160.95,3.9114]
[1727450640303,67.1,161.02,160.97,14.91]
[1727450640605,67.1,161.02,160.98,3.1048]
[1727450640798,67.1,161.02,160.97,14.91]
[1727450641000,70.2041,161.02,160.97,18.015]
[1727450641300,67.1,161.02,160.97,14.91]
[1727450641502,14.91,161.01,160.95,3.9114]
[1727450642405,14.91,160.99,160.91,14.91]
[1727450642605,14.91,160.95,160.88,1.7458]
[1727450642806,33.55,161.0,160.88,1.7458]
[1727450642807,14.91,160.93,160.88,1.7458]
[1727450643008,14.91,160.93,160.86,3.1071]
[1727450643504,14.91,160.93,160.85,14.91]
[1727450643704,14.91,160.93,160.86,1.8887]
[1727450644305,14.91,160.93,160.88,3.1067]
[1727450644500,14.91,160.93,160.86,1.8887]
[1727450645007,3.1062,160.92,160.86,4.9958]
[1727450645207,14.91,160.93,160.86,1.8887]
[1727450646103,3.1061,160.92,160.86,4.9958]
[1727450646308,14.91,160.91,160.86,4.9958]
[1727450646497,82.03,160.91,160.84,1.7709]
[1727450646698,85.1362,160.91,160.84,4.8783]
[1727450647102,88.30239342,160.91,160.84,4.8783]
[1727450647403,88.30239342,160.91,160.9,9.59]
[1727450648703,88.30239342,160.91,160.9,2.9874]
[1727450650502,85.19619342,160.91,160.81,14.91]
[1727450650699,85.19619342,160.91,160.84,3.1074]
[1727450650902,88.30249342,160.91,160.83,14.91]
[1727450651103,85.19619342,160.91,160.85,3.1073]
[1727450651305,85.19619342,160.91,160.86,1.75]
[1727450651503,88.30249342,160.91,160.86,1.75]
[1727450652209,67.12,160.91,160.86,1.75]
[1727450652408,67.12,160.91,160.87,3.621]
[1727450652911,67.12,160.91,160.87,6.7279]
[1727450654101,70.27620605,160.91,160.87,3.621]
[1727450654504,85.18620605,160.91,160.87,3.621]
[1727450655214,85.18620605,160.91,160.87,6.7279]
[1727450655511,85.18620605,160.91,160.87,3.621]
[1727450655813,85.18620605,160.91,160.87,1.782]
[1727450656014,85.18620605,160.91,160.86,1.75]
[1727450657717,85.18620605,160.91,160.86,4.8571]
[1727450657917,85.18620605,160.91,160.86,1.75]
[1727450658317,14.91,160.88,160.78,14.91]
[1727450658512,14.91,160.86,160.78,14.91]
[1727450658711,14.91,160.86,160.79,1.7649]
[1727450658920,14.91,160.84,160.79,1.7649]
[1727450659216,3.1078,160.83,160.79,1.7649]
[1727450659416,14.91,160.82,160.77,3.54]
[1727450659815,3.1084,160.8,160.77,3.54]
[1727450660119,18.03118604,160.82,160.77,3.54]
[1727450660322,14.91,160.8,160.77,3.54]
[1727450660616,14.91,160.78,160.72,1.7661]
[1727450660920,14.91,160.73,160.68,1.7739]
[1727450662324,27.0095,160.74,160.68,1.7739]
[1727450662915,3.1097,160.73,160.68,1.7739]
[1727450663311,23.9,160.72,160.68,1.7739]
[1727450663723,23.9,160.72,160.64,3.1114]
[1727450664015,23.9,160.69,160.63,1.7661]
[1727450664218,91.08,160.69,160.63,1.7661]
[1727450664419,94.26835783,160.69,160.63,1.7661]
[1727450664616,23.9,160.67,160.6,3.626]
[1727450665212,3.1109,160.67,160.6,3.626]
[1727450665414,23.9,160.67,160.6,3.626]
[1727450665923,3.1114,160.65,160.6,3.626]
[1727450666318,23.9,160.64,160.6,1.8077]
[1727450666520,23.9,160.64,160.55,1.7133]
[1727450666818,3.112,160.61,160.55,3.4891]
[1727450667016,23.9,160.6,160.55,3.4891]
[1727450667525,3.18516187,160.59,160.55,3.4891]
[1727450668619,23.9,160.63,160.55,3.4891]
[1727450669119,23.9,160.65,160.55,3.4891]
[1727450670319,67.22,160.67,160.57,23.9]
[1727450671030,70.3309,160.67,160.6,3.112]
[1727450671323,67.22,160.67,160.57,23.9]
[1727450671719,70.3309,160.67,160.6,3.112]
[1727450672118,67.22,160.67,160.6,3.112]
[1727450672723,70.3308,160.67,160.6,3.112]
[1727450672930,67.22,160.67,160.6,3.112]
[1727450673324,91.12,160.67,160.55,27.3891]
[1727450673824,3.1114,160.65,160.58,3.1124]
[1727450675027,3.111,160.66,160.6,3.1121]